Cogmind - Beta 16 @@@ ROGUE MODE // 2025.11.03 @ 19:41:00 Player: Cmdr.Laserstrahl Result: Destroyed by Y-45 Defender with Beam Rifle Performance ------------- Evolutions (0) 0 Regions Visited (2) 400 Robots Destroyed (11) 55 Value Destroyed (159) 159 Prototype IDs (0) 0 Alien Tech Used (0) 0 Bonus (0) 0 TOTAL SCORE: 614 Bonus ------- None Cogmind --------- Core Integrity 0/250 Matter 275/300 Energy 39/100 System Corruption 0% Temperature Cool (40) Movement Rolling (100) Location -10/Mines Parts ------- > --- POWER (1) -------- (None) > --- PROPULSION (2) --- Light Treads Compact Wheel > --- UTILITY (2) ------ Core Shielding Light Armor Plating > --- WEAPON (2) ------- Medium Laser > --- INVENTORY (5) ---- Compact Wheel Improved Terrain Scanner ECM Suite Peak State ------------ > --- POWER ------------ Ion Engine > --- PROPULSION ------- Wheel Wheel > --- UTILITY ---------- Small Storage Unit Seismic Detector > --- WEAPON ----------- Medium Laser Small Laser > --- INVENTORY -------- Ion Engine Light Treads Light Treads Compact Wheel Compact Wheel Improved Terrain Scanner ECM Suite EM Pulse Gun [Rating: 8] Favorites ----------- Power Ion Engine Engine Ion Engine Propulsion Wheel Treads Light Treads Wheel Wheel Utility Small Storage Unit Device Seismic Detector Storage Small Storage Unit Protection Core Shielding Weapon Medium Laser Energy Gun Medium Laser Ballistic Gun Light Assault Rifle Build | -11 -10 -10 ------- Run | Yrd Mat Min Slots Evolved . | . . . Power . | . . . Propulsion . | . . . Utility . | . . . Weapon . | . . . Parts Attached 16 | 7 1 8 Power 2 | 1 . 1 Engine 2 | 1 . 1 Core . | . . . Reactor . | . . . Propulsion 5 | 2 . 3 Treads 2 | . . 2 Leg . | . . . Wheel 3 | 2 . 1 Hover . | . . . Flight . | . . . Utility 4 | 2 . 2 Device 1 | 1 . . Storage 1 | 1 . . Processor . | . . . Hackware . | . . . Protection 2 | . . 2 Artifact . | . . . Weapon 5 | 2 1 2 Energy Gun 4 | 2 . 2 Energy Cannon . | . . . Ballistic Gun 1 | . 1 . Ballistic Cannon . | . . . Launcher . | . . . Special Weapon . | . . . Impact Weapon . | . . . Slashing Weapon . | . . . Piercing Weapon . | . . . Special Melee Weapon . | . . . Unidentified Prototypes . | . . . Parts Lost 9 | . . 9 Power 2 | . . 2 Propulsion 3 | . . 3 Utility 1 | . . 1 Weapon 3 | . . 3 Highest Loss Streak 8 | . . 8 To Critical Strikes . | . . . Average Backups 6 | 3 7 6 Power . | . 1 . Propulsion 3 | 1 4 3 Utility 1 | . 1 2 Weapon . | 1 1 . Tool/Special . | . . . Unused Backups 3 | . . 3 Power . | . . . Propulsion 1 | . . 1 Utility 2 | . . 2 Weapon . | . . . Tool/Special . | . . . Average Slot Usage (%) 90 | . 100 86 Engine 10 | . 14 9 Treads 9 | . . 13 Wheel 16 | . 28 11 Device 11 | . 14 10 Storage 13 | . 14 13 Protection 1 | . . 1 Energy Gun 17 | . 26 12 Ballistic Gun 8 | . 1 11 Peak Build Rating 8 | 7 8 8 Average Rating 6 | 5 7 6 On Entrance 5 | . 7 8 Avg Prop Armor Cover (%) 14 | . . 14 Naked Turns . | . . . Heaviest Build 14 | 14 14 14 Greatest Support 20 | 20 20 16 Greatest Overweight (x) 4 | . . 4 Average Overweight (x) . | . . . Largest Inventory Capacity 8 | 8 8 8 Average Capacity 7 | 7 8 7 Most Carried 8 | 7 8 8 Average Carried 6 | 4 7 6 Final Capacity 8 | 8 8 5 Final Carried 8 | 7 8 3 Class Distribution -------------------- 100% | Mutant Dominant Class ---------------- Mutant | -10/Materials Mutant | -10/Mines Resources | -11 -10 -10 ----------- Run | Yrd Mat Min Matter Collected 340 | 270 10 60 Remotely . | . . . Salvage Created 312 | 110 84 118 Parts 18 | 6 7 5 Haulers Intercepted . | . . . Recyclers Shooed 1 | . 1 . Parts Field Recycled . | . . . Retrieved Matter . | . . . Parts Self-Destructed . | . . . Prevented . | . . . Parts Restored . | . . . Kills | -11 -10 -10 ------- Run | Yrd Mat Min Combat Hostiles Destroyed 9 | . 6 3 Guns 9 | . 6 3 Classes Destroyed 6 | 2 1 3 Tunneler 2 | 2 . . Recycler 1 | 1 . . Swarmer 6 | . 6 . Grunt 1 | . . 1 Sentry 1 | . . 1 Assembled 1 | . . 1 Best Kill Streak 6 | 2 6 1 Combat Bots Only 6 | . 6 1 Max Kills in Single Turn 2 | 2 2 1 Gunslinging 1 | . 1 . Exploded . | . . . Melee . | . . . Uniques/NPCs Destroyed . | . . . Combat | -11 -10 -10 -------- Run | Yrd Mat Min Hostile Shots Fired 125 | . 54 71 Missed 31 | . 12 19 Hits 94 | . 42 52 Projectile 94 | . 42 52 Critical Strikes 3 | . . 3 Actively Blocked 1 | . . 1 Damage Taken 1085 | . 337 748 Core 250 | . 73 177 Absorbed by Shields . | . . . Redirected to Shielding 13 | . . 13 Core Remaining (%) 100 | 100 . . Volleys Fired 56 | 9 16 31 Largest 2 | 2 2 2 Hottest 90 | 90 90 70 Shots Fired 97 | 18 32 47 Gun 97 | 18 32 47 Cannon . | . . . Launcher . | . . . Special . | . . . Kinetic 16 | . . 16 Thermal 65 | 18 32 15 Explosive . | . . . Electromagnetic 16 | . . 16 Robot Hit Streak 10 | 8 3 10 Robot Miss Streak 4 | 4 4 2 Penetration Max . | . . . Secondary Targets 2 | . 2 . Max Gunslinging Chain 1 | . 1 . Shots Hit Robots 57 | 12 17 28 Core Hits 21 | 4 8 9 Critical Kills . | . . . Critical Parts Destroyed . | . . . Critical Strikes 2 | . 1 1 Burn 2 | . 1 1 Melee Attacks . | . . . Impact . | . . . Slashing . | . . . Piercing . | . . . Sneak Attacks . | . . . Combat Hostiles . | . . . Follow-up Attacks . | . . . Damage Inflicted 712 | 154 237 321 Guns 712 | 154 237 321 Cannons . | . . . Explosions . | . . . Melee . | . . . Ramming . | . . . Kinetic 78 | . . 78 Thermal 514 | 154 237 123 Explosive . | . . . Electromagnetic 120 | . . 120 Impact . | . . . Slashing . | . . . Piercing . | . . . Highest Corruption . | . . . Average Corruption . | . . . Corruption Purged . | . . . Corruption Blocked . | . . . Overload Shots . | . . . Overflow Damage . | . . . Projectiles . | . . . Explosions . | . . . Melee . | . . . Knockbacks . | . . . Impact . | . . . Kinetic . | . . . Secondary . | . . . Self-Inflicted Damage . | . . . Shots . | . . . Rammed . | . . . Targets Rammed . | . . . Kicked . | . . . Crushed . | . . . Highest Temperature 300 | 140 300 100 Average Temperature 78 | 63 135 32 Received Heat Transfer 277 | . . 277 Siege Activations . | . . . Martial Activations . | . . . Shielding Activations . | . . . Robots Disrupted . | . . . Combat Hostiles . | . . . Robots Corrupted . | . . . Combat Hostiles . | . . . Parts Fried . | . . . Impact Corruptions . | . . . Robots Melted . | . . . Combat Hostiles . | . . . Parts Melted 1 | . 1 . Heat Transferred 1523 | 409 670 444 Parts Sabotaged . | . . . Parts Stolen . | . . . Parts Stripped . | . . . Power Chain Reactions . | . . . Alert | -11 -10 -10 ------- Run | Yrd Mat Min Maximum Alert Level . | . . . Low Security (%) 100 | 100 100 100 Level 1 . | . . . Level 2 . | . . . Level 3 . | . . . Level 4 . | . . . Level 5 . | . . . High Security . | . . . Max Security . | . . . Peak Influence 124 | 10 124 44 Initial 44 | . . 44 Average 16 | 1 44 9 Influence Increases 204 | 15 149 40 Destroy 0b10 Robot/C 160 | . 120 40 Destroy 0b10 Robot/NC 15 | 15 . . Destroy Leader 20 | . 20 . Successful Hack 9 | . 9 . Influence Decreases 204 | 15 35 154 Entered New Map 70 | . . 70 Time Decay 104 | 15 35 54 Lost Part 30 | . . 30 Squads Dispatched . | . . . Investigation . | . . . Extermination . | . . . Reinforcement . | . . . Assault . | . . . Garrison . | . . . Intercept . | . . . Searches Triggered . | . . . Construction Impeded . | . . . Haulers Reinforced . | . . . Active Scanning Responses . | . . . Cargo Convoy Interrupts . | . . . Stealth | -11 -10 -10 --------- Run | Yrd Mat Min Distress Signals 2 | . 1 1 Communications Jammed . | . . . Distress Signals . | . . . Times Spotted 16 | . 12 4 Peak Tracking Total 6 | . 6 2 Tactical Retreats . | . . . Traps | -11 -10 -10 ------- Run | Yrd Mat Min Traps Triggered . | . . . Indirectly . | . . . Trap Hack Attempts . | . . . Triggered . | . . . Disarmed . | . . . Reprogrammed . | . . . Reused . | . . . Traps Extracted . | . . . Installed . | . . . Triggered . | . . . Machines | -11 -10 -10 ---------- Run | Yrd Mat Min Machines Disabled . | . . . Max in Single Turn . | . . . Machines Repaired . | . . . Machines Dismantled . | . . . Machines Sabotaged . | . . . Overloaded Fab Kills . | . . . Hacking | -11 -10 -10 --------- Run | Yrd Mat Min Machines Accessed 2 | . 2 . Terminals 2 | . 2 . Fabricators . | . . . Repair Stations . | . . . Recycling Units . | . . . Scanalyzers . | . . . Garrison Access . | . . . Total Hacks 6 | . 6 . Successful 3 | . 3 . Failed 3 | . 3 . Catastrophic . | . . . Database Lockouts . | . . . Manual 4 | . 4 . Terminals 6 | . 6 . Fabricators . | . . . Repair Stations . | . . . Recycling Units . | . . . Scanalyzers . | . . . Garrison Access . | . . . Terminal Hacks 1 | . 1 . Locate Traps 1 | . 1 . Fabricator Hacks . | . . . Repair Station Hacks . | . . . Recycling Unit Hacks . | . . . Scanalyzer . | . . . Garrison Access Hacks . | . . . Unauthorized Hacks 2 | . 2 . Terminals 2 | . 2 . Botnet 2 | . 2 . Fabricators . | . . . Repair Stations . | . . . Recycling Units . | . . . Scanalyzers . | . . . Garrison Access . | . . . Data Cores Recovered . | . . . Used . | . . . Hacking Detections 2 | . 2 . Full Trace Events . | . . . Feedback Events . | . . . Feedback Blocked . | . . . Robot Schematics Acquired . | . . . Robots Built . | . . . Authchips . | . . . Time . | . . . Total Robot Build Rating . | . . . Part Schematics Acquired . | . . . Parts Built . | . . . Authchips . | . . . Time . | . . . Total Part Build Rating . | . . . Part Studies Acquired . | . . . Parts Repaired . | . . . Time . | . . . Parts Recycled . | . . . Recycled Matter . | . . . Retrieved Matter . | . . . Retrieved Components . | . . . Parts Scanalyzed . | . . . Part Schematics Acquired . | . . . Parts Damaged . | . . . Bothacking | -11 -10 -10 ------------ Run | Yrd Mat Min Used RIF Installer . | . . . Robots Hacked . | . . . Non-combat . | . . . Combat . | . . . Robot Hacks Applied . | . . . Relay Couplers Released . | . . . Fabnet Peak Effective % . | . . . Robots Rewired . | . . . Allies Hacked . | . . . Hacks Repelled . | . . . Allies | -11 -10 -10 -------- Run | Yrd Mat Min Total Allies . | . . . Largest Group . | . . . Highest-Rated Group . | . . . Highest-Rated Ally . | . . . Total Orders . | . . . Ally Attacks . | . . . Total Damage . | . . . Kills . | . . . Allies Corrupted . | . . . Allies Melted . | . . . Intel | -11 -10 -10 ------- Run | Yrd Mat Min Active Infowar (turns) 317 | 28 110 179 Seismic 317 | 28 110 179 Robot Analysis Total . | . . . Derelict Logs Recovered . | . . . Drone Launches . | . . . Drone Recoveries . | . . . Exploration | -11 -10 -10 ------------- Run | Yrd Mat Min Turns Passed 434 | 84 110 240 Spaces Moved 187 | 48 68 71 Core 10 | 6 . 4 Treads . | . . . Legs . | . . . Wheels 177 | 42 68 67 Hover . | . . . Flight . | . . . Fastest Speed 50 | 50 80 80 Average Speed 85 | 76 80 96 Slowest Speed 250 | 80 80 250 Overloaded Moves . | . . . Propulsion Burnouts . | . . . Robots Hopped . | . . . Potential Cave-ins . | . . . Cave-ins Triggered . | . . . Exploration Rate (%) 12 | 4 20 14 Regions Visited 2 Branch Regions 1 Pre-discovered Areas . | . . . Known Exits Taken . | . . . Unknown Exits Taken 2 | 1 1 . Scrap Searched . | . . . Spaces Dug . | . . . Terrain Destroyed . | . . . Melee . | . . . Projectile . | . . . AOE . | . . . Terrain Rammed . | . . . Walls Destroyed . | . . . Machines Disabled . | . . . Actions | -11 -10 -10 --------- Run | Yrd Mat Min Total 368 | 77 91 200 Wait 87 | . 5 82 Move 185 | 47 67 71 Hop . | . . . Pick Up 19 | 14 1 4 Fast Attach 1 | . 1 . Attach 15 | 7 . 8 Detach . | . . . Swap 2 | . . 2 Drop 3 | . 1 2 Fire 56 | 9 16 31 Melee . | . . . Ram . | . . . Kick . | . . . Crush . | . . . Escape Stasis . | . . . Rewire . | . . . Trap . | . . . Miscellaneous . | . . . Route ------- -11/Scrapyard -10/Materials -10/Mines History --------- Turn | Location | Event 20 | -11/Scrapyard | Discovered new exit (range 16) 85 | -11/Scrapyard | Entered Materials 113 | -10/Materials | Discovered new exit (range 14) 195 | -10/Materials | Entered Mines 199 | -10/Mines | Excavation squad dispatched 199 | -10/Mines | A large section of the Mines collapsed 231 | -10/Mines | Met a Derelict bent on vengeance 318 | -10/Mines | Build established: Mutant 391 | -10/Mines | Core integrity fell below 50% 419 | -10/Mines | Core integrity fell below 20% 435 | -10/Mines | Destroyed by Y-45 Defender with Beam Rifle Last Messages --------------- 00344_ U-05 Engineer lays Concrete. 00368_ Wheel destroyed. 00374_ Seismic Detector destroyed. 00391_ Lgt. Assault Rifle destroyed. 00393_ EM Pulse Gun destroyed. 00397_ Ion Engine destroyed. 00399_ Med. Laser destroyed. 00400_ Critical hit (Burn: +37). 00407_ Acquired Core Shielding. 00410_ Acquired Med. Laser. 00411_ Machine disabled. 00418_ Lgt. Treads destroyed. 00420_ Machine disabled. 00422_ Y-45 Defender destroyed. 00425_ Acquired 25 matter. 00428_ Dropped Sml. Storage Unit. 00429_ Acquired Lgt. Armor Plating. 00429_ Wheel destroyed. 00434_ Y-45 Defender suffers critical hit (Burn). Map ----- +----------------------------------------------------+ | ?????????????????????????????????? | | ?????????????????????????????????? | | ??????????###????????????????????? | | ?????????## ##??????????????????? | | ?????????# ##?????????????????? | | ????????## ##????????????????? | | ????????# """ #????????????????? | | ????????# """ #????????????????? | | ????????# """ #?????????????????? | | ???????## #?????????????????? | | ???????# # #?????????????????? | | ???????##### ##????????????????? | | ???????## !% #????????????????? | | ??????# ##"* #????????????????? | | ???? ##" ##????????????????? | | ? ###"##### #?????????????????? | | ???####### #?????????????????? | | # ??????# ???# #?????????????????? | | #???????# ???# #?????????????????? | | ????????# ???# #???????######????? | | ???????? ???# #??????## ! "##???? | | ????????# ???# #??????# ! "#???? | | ????????# ???# #??????# #???? | | ????????# ???# #??????## % ##???? | | ???????? ????# #??????###/Y####??? | | ????????#????# ########! @= #??? | | ?????????????# ## #??? | | ?????????????###### ## #??? | | ??????????????????# #??? | | ??????????????????# ## #??? | | ??????????????????# ## #??? | | ?????????????????# ### #####??? | | ?????????????????# #?# #??????? | | ?????????????????# #?# #??????? | | ?????????????????# ##?# #??????? | | ?????????????????# #??# #??????? | | ?????????????????# ??# #??????? | | ????????????????? ??# #??????? | | ????????????????? ??# ???????? | | ?????????????????# ?? ???????? | | ?????????????????## ?? ???????? | | ???????????????????###?? ???????? | | ????????????????????????# ???????? | | ?????????????????????????#???????? | | ?????????????????????????????????? | | ?????????????????????????????????? | | ?????????????????????????????????? | | ?????????????????????????????????? | | ?????????????????????????????????? | | ?????????????????????????????????? | +----------------------------------------------------+ Best States ------------- Heat Dissipation 25 Energy Generation 10 Energy Capacity 250 Matter Stores 300 Matter Capacity 300 Sight Range 16 Terrain Scan Density 10 Core Shielding 20 Evasion (%) 44 Item Schematics ----------------- None Robot Schematics ------------------ None Fabricated ------------ Nothing Repaired ---------- Nothing Studied --------- None Alien Tech Used ----------------- None Achievements -------------- None Challenges ------------ None Game ------ Seed PiercingProjectionMeganuke Manual? 0 Play Time 00:08:26 Cumulative 428.1 hours Start 2025.11.03 @ 19:33:21 End 2025.11.03 @ 19:41:00 Sessions 1 Manual Loads 0 Difficulty Rogue Special Mode None Game No. 167 Rogue 164 Adventurer 3 Explorer 0 Win Type - Total 0 Types 0/0/0/0/0/0/0/0/0/0 Lore% 30 Gallery% 52 Achievement% 33 Wizard Run 0 Options --------- Layout 2 ASCII 0 Keyboard 0 Movement Mouse Keybinds 0 Fullscreen 1 Font 24/Smallcaps Map View 50x44 Zoom Use 0% Tactical HUD 1 Map Filters NONE Filters NONE Steam 1 RUN: d27634c5-5783-40a2-a5f1-1e428008a1c6